bitfinex/quotes_SOLUSD_20250420
["timestamp","ask_amount","ask_price","bid_price","bid_amount"]
[1745185238444,62.18014976,137.08,137.07,14.4]
[1745185238767,18.64964886,137.07,137.05,14.42]
[1745185238932,36.9102009,137.06,137.05,14.42]
[1745185245259,38.4282009,137.06,137.05,14.42]
[1745185245761,18.64964886,137.05,137.04,0.063]
[1745185245967,29.55984976,137.05,137.04,0.063]
[1745185249565,73.20065336,137.05,137.03,14.42]
[1745185249747,73.20065336,137.04,137.03,14.42]
[1745185253182,73.20065336,137.04,137.02,14.483]
[1745185253477,10.9102009,137.03,137.02,14.483]
[1745185260071,18.64964886,137.04,137.02,14.483]
[1745185260278,27.518,137.06,137.02,14.483]
[1745185260279,10.9102009,137.06,137.02,14.483]
[1745185260671,26.0,137.09,137.02,14.483]
[1745185260881,10.9102009,137.05,137.02,14.483]
[1745185265797,18.64964886,137.08,137.02,14.483]
[1745185265798,10.9102009,137.06,137.02,14.483]
[1745185268001,10.9102009,137.05,137.02,14.483]
[1745185271204,10.9102009,137.04,137.02,14.483]
[1745185271383,10.9102009,137.03,137.02,14.483]
[1745185280704,10.9102009,137.04,137.02,14.483]
[1745185281819,18.64964886,137.05,137.02,14.483]
[1745185282110,10.9102009,137.04,137.02,14.483]
[1745185282308,1.0,137.09,137.02,14.483]
[1745185282617,18.64964886,137.06,137.02,14.483]
[1745185283115,26.0,137.08,137.02,25.3932009]
[1745185283292,10.9102009,137.09,137.03,10.9102009]
[1745185283495,26.0,137.08,137.03,10.9102009]
[1745185284006,26.0,137.07,137.03,10.9102009]
[1745185284209,26.0,137.07,137.02,25.3932009]
[1745185284907,26.0,137.07,137.03,18.8985009]
[1745185285410,26.0,137.07,137.03,7.9883]
[1745185288416,36.9102009,137.07,137.03,7.9883]
[1745185291827,26.0,137.07,137.03,7.9883]
[1745185299131,26.0,137.07,137.03,18.8985009]
[1745185299922,26.0,137.07,137.04,14.4]
[1745185307941,36.9102009,137.07,137.04,14.4]
[1745185308840,26.0,137.07,137.04,14.4]
[1745185313142,10.9102009,137.08,137.04,14.4]
[1745185313339,36.9102009,137.08,137.04,14.4]
[1745185313835,80.6202009,137.08,137.04,14.4]
[1745185314023,36.9102009,137.08,137.04,14.4]
[1745185316539,10.9102009,137.06,137.04,14.4]
[1745185316733,29.55984976,137.05,137.04,14.4]
[1745185320542,18.64964886,137.05,137.04,14.4]
[1745185328446,26.0,137.08,137.04,14.4]
[1745185328653,18.64964886,137.08,137.04,14.4]
[1745185332343,29.55984976,137.08,137.04,14.4]
[1745185338250,29.55984976,137.08,137.05,14.4]
[1745185342553,18.64964886,137.08,137.05,14.4]
[1745185342854,29.55984976,137.08,137.05,14.4]
[1745185343154,10.9102009,137.07,137.05,14.4]
[1745185351351,10.9102009,137.07,137.06,14.4]
[1745185354258,29.55984976,137.07,137.06,14.4]
[1745185356576,18.64964886,137.06,137.05,14.4]
[1745185356863,44.64964886,137.04,137.03,14.4]
[1745185357041,55.55984976,137.04,137.03,14.4]
[1745185384275,18.26601995,137.1,137.03,14.4]
[1745185384276,0.03,137.1,137.03,14.4]
[1745185384479,18.64964886,137.08,137.03,14.4]
[1745185384688,0.03,137.1,137.03,25.3102009]
[1745185384991,26.0,137.08,137.03,25.3102009]
[1745185385177,10.9102009,137.09,137.03,25.3102009]
[1745185385596,10.9102009,137.08,137.03,14.4]
[1745185385788,26.0,137.08,137.03,25.3102009]
[1745185386500,10.9102009,137.09,137.03,25.3102009]
[1745185397714,10.9102009,137.08,137.03,14.4]
[1745185398014,10.9102009,137.08,137.03,25.3102009]
[1745185398714,10.9102009,137.08,137.03,275.2502009]
[1745185400817,10.9102009,137.08,137.03,264.34]
[1745185402203,18.64964886,137.09,137.04,1.6276]
[1745185402404,10.9102009,137.08,137.04,1.6276]
[1745185408205,10.9102009,137.08,137.05,14.4]
[1745185408515,29.55984976,137.09,137.05,14.4]
[1745185411515,10.9102009,137.08,137.05,14.4]
[1745185412923,10.9102009,137.08,137.06,14.4]
[1745185419531,18.64964886,137.09,137.06,14.4]
[1745185420106,29.55984976,137.09,137.06,14.4]
[1745185420419,18.64964886,137.09,137.06,14.4]
[1745185420621,29.55984976,137.09,137.06,14.4]
[1745185422529,29.55984976,137.09,137.07,14.4]
[1745185427226,18.64964886,137.09,137.07,14.4]
[1745185428011,29.55984976,137.09,137.07,14.4]
[1745185432146,18.64964886,137.09,137.08,14.4]
[1745185433236,0.03,137.1,137.08,14.4]
[1745185433428,18.64964886,137.09,137.08,14.4]
[1745185434731,0.03,137.1,137.08,14.4]
[1745185435935,0.03,137.1,137.09,10.9102009]
[1745185436537,0.03,137.1,137.08,25.3102009]
[1745185436736,0.03,137.1,137.08,14.4]
[1745185436913,0.03,137.1,137.09,10.9102009]
[1745185437233,0.03,137.1,137.08,14.4]
[1745185437544,0.03,137.1,137.08,25.3102009]
[1745185437839,0.03,137.1,137.08,14.4]
[1745185444536,0.03,137.1,137.08,25.3102009]
[1745185444847,0.03,137.1,137.09,10.9102009]
[1745185445637,0.03,137.1,137.09,12.4527009]
[1745185445939,0.03,137.1,137.09,18.9181009]
[1745185449937,0.03,137.13,137.12,26.0]
[1745185450132,0.03,137.13,137.12,36.9102009]
[1745185451748,0.03,137.13,137.09,88.7079]
[1745185451922,0.03,137.13,137.11,10.9102009]
[1745185452550,0.03,137.13,137.1,10.9102009]
[1745185452719,0.03,137.13,137.09,18.9181009]
[1745185453046,0.03,137.13,137.08,25.3102009]
[1745185453549,0.03,137.13,137.09,10.9102009]
[1745185454238,0.03,137.13,137.1,10.9102009]
[1745185455845,0.03,137.13,137.08,14.4]
[1745185456348,0.03,137.13,137.09,10.9102009]
[1745185457445,0.03,137.13,137.11,10.9102009]
[1745185457854,0.03,137.13,137.12,10.9102009]
[1745185458141,0.03,137.13,137.11,10.9102009]
[1745185459949,0.03,137.13,137.12,10.9102009]
[1745185465251,0.03,137.13,137.12,54.5510045]
[1745185465738,0.03,137.13,137.12,161.2510045]
[1745185468855,0.03,137.13,137.12,170.81109971]
[1745185469043,0.03,137.13,137.12,180.00528576]
[1745185470042,0.03,137.13,137.12,198.65493462]
[1745185472846,0.03,137.13,137.12,429.64065336]
[1745185473260,0.03,137.13,137.12,385.99984976]
[1745185473434,0.03,137.13,137.12,367.3502009]
[1745185475243,0.03,137.13,137.12,410.9910045]
[1745185475444,0.03,137.13,137.12,429.74528576]
[1745185477459,0.03,137.14,137.12,429.74528576]
[1745185477756,0.03,137.15,137.13,62.89413102]
[1745185477946,0.03,137.15,137.14,29.55984976]
[1745185478255,0.03,137.15,137.13,51.98393012]
[1745185478256,0.03,137.15,137.13,33.33428126]
[1745185478563,0.03,137.15,137.14,10.9102009]
[1745185480376,0.03,137.15,137.14,91.6102009]
[1745185485156,0.03,137.15,137.14,80.7]
[1745185485383,0.03,137.15,137.14,91.6102009]
[1745185486664,0.03,137.15,137.14,80.7]
[1745185488061,0.03,137.15,137.13,25.4902009]
[1745185488450,0.03,137.15,137.14,10.9102009]
[1745185488768,0.03,137.15,137.14,20.47029611]
[1745185489867,0.03,137.15,137.14,101.17029611]
[1745185490053,0.03,137.15,137.14,91.6102009]
[1745185490767,0.03,137.15,137.13,25.4902009]
[1745185491467,0.03,137.15,137.14,10.9102009]
[1745185495376,0.03,137.15,137.14,91.6102009]
[1745185496061,0.03,137.15,137.14,110.36448216]
[1745185497876,0.03,137.15,137.14,129.01413102]
[1745185498353,0.03,137.15,137.14,119.81994497]
[1745185498878,0.03,137.15,137.14,110.25984976]
[1745185499077,0.03,137.15,137.14,80.7]
[1745185499465,0.03,137.15,137.13,14.58]
[1745185499663,0.03,137.15,137.13,25.4902009]
[1745185500370,0.03,137.15,137.13,14.58]
[1745185500574,0.03,137.15,137.14,10.9102009]
[1745185503873,0.03,137.15,137.13,14.58]
[1745185504074,0.03,137.15,137.14,10.9102009]
[1745185510287,0.03,137.15,137.14,91.6102009]
[1745185512790,0.03,137.15,137.14,110.25984976]
[1745185518195,0.03,137.15,137.14,115.93496798]
[1745185521394,0.03,137.15,137.14,131.13496798]
[1745185521897,0.03,137.15,137.14,149.88924924]
[1745185524187,0.03,137.15,137.14,399.54924924]
[1745185526101,0.03,137.15,137.14,390.35506319]
[1745185527195,0.03,137.15,137.14,410.67994497]
[1745185532710,0.03,137.15,137.14,384.67994497]
[1745185545508,0.03,137.15,137.14,393.87397535]
[1745185582961,0.03,137.16,137.15,106.67]
[1745185583253,0.03,137.16,137.15,117.5802009]
[1745185586557,0.03,137.16,137.15,132.2402009]
[1745185590950,0.03,137.16,137.15,150.88984976]
[1745185591159,0.03,137.16,137.15,160.44994497]
[1745185591656,0.03,137.16,137.15,149.53974407]
[1745185591954,0.03,137.16,137.15,141.80029611]
[1745185592248,0.03,137.16,137.15,130.89009521]
[1745185592441,0.03,137.16,137.15,121.33]
[1745185592635,0.03,137.16,137.15,132.2402009]
[1745185593044,0.03,137.16,137.15,121.33]
[1745185593337,0.03,137.16,137.15,132.2402009]
[1745185612079,0.03,137.16,137.15,381.9002009]
[1745185612663,0.03,137.16,137.15,400.65432649]
[1745185614984,0.03,137.17,137.16,18.64964886]
[1745185615171,0.03,137.17,137.16,110.22984976]
[1745185621498,0.03,137.17,137.16,119.78994497]
[1745185630094,0.03,137.17,137.16,128.98397535]
[1745185636102,0.03,137.17,137.16,143.42397535]
[1745185640904,0.03,137.17,137.16,393.04397535]
[1745185647609,0.03,137.18,137.17,108.84974407]
[1745185647811,0.03,137.18,137.17,128.95397535]
[1745185653314,0.03,137.19,137.18,106.61]
[1745185653614,0.03,137.19,137.18,117.5202009]
[1745185654722,0.03,137.19,137.18,127.08029611]
[1745185659217,0.03,137.19,137.18,26.0]
[1745185659522,0.03,137.19,137.17,10.9102009]
[1745185661513,0.03,137.19,137.18,10.9102009]
[1745185662713,0.03,137.19,137.18,91.5202009]
[1745185669727,0.03,137.19,137.18,105.9202009]
[1745185670227,0.03,137.19,137.18,95.01]
[1745185670418,0.03,137.19,137.18,105.9202009]
[1745185671411,0.03,137.19,137.18,95.01]
[1745185671617,0.03,137.19,137.18,105.9202009]
[1745185676939,0.03,137.19,137.18,95.01]
[1745185677420,0.03,137.19,137.18,105.9202009]
[1745185678119,0.03,137.19,137.18,124.56984976]
[1745185678622,0.03,137.19,137.18,143.32397535]
[1745185679303,0.03,137.19,137.18,392.92397535]
[1745185679826,0.03,137.21,137.19,18.64964886]
[1745185680012,0.03,137.21,137.19,29.55984976]
[1745185685615,0.03,137.21,137.19,110.16984976]
[1745185685932,0.03,137.21,137.19,113.80766804]
[1745185688928,0.03,137.21,137.19,128.20766804]
[1745185708352,0.03,137.21,137.19,377.76766804]
[1745185715428,0.03,137.21,137.19,396.52179363]
[1745185734373,0.03,137.21,137.19,386.96169842]
[1745185741178,0.03,137.21,137.19,376.05149752]
[1745185741379,0.03,137.21,137.19,366.85746714]
[1745185741571,0.03,137.21,137.19,377.76766804]
[1745185755879,0.03,137.21,137.19,386.96169842]
[1745185756062,0.03,137.21,137.19,396.52179363]
[1745185756681,0.03,137.21,137.19,385.61159273]
[1745185767198,0.03,137.21,137.2,33.04964886]
[1745185767801,0.03,137.21,137.2,113.65964886]
[1745185771902,0.03,137.21,137.2,363.21964886]
[1745185772400,0.03,137.21,137.2,374.12984976]
[1745185773106,0.03,137.21,137.2,363.21964886]
[1745185778289,0.03,137.21,137.2,374.12984976]
[1745185780398,0.03,137.21,137.2,392.88397535]
[1745185782917,0.03,137.21,137.2,363.32412559]
[1745185783390,0.03,137.21,137.2,374.23432649]
[1745185785322,0.03,137.21,137.2,363.32412559]
[1745185785647,0.03,137.21,137.2,374.23432649]
[1745185792631,0.03,137.21,137.2,363.32412559]
[1745185792929,0.03,137.21,137.2,374.23432649]
[1745185795724,0.03,137.21,137.2,363.32412559]
[1745185795935,12.5780009,137.21,137.2,263.96]
[1745185801026,1.6678,137.21,137.2,263.96]
[1745185809134,12.5780009,137.21,137.2,263.96]
[1745185809639,18.8129009,137.21,137.2,263.96]
[1745185811536,37.46254976,137.21,137.2,263.96]
[1745185813520,63.46254976,137.21,137.2,263.96]
[1745185816140,63.46254976,137.21,137.2,14.4]
[1745185820638,18.64964886,137.2,137.19,14.4]
[1745185820932,73.20065336,137.2,137.19,14.4]
[1745185829258,29.55984976,137.2,137.19,14.4]
[1745185831149,73.20065336,137.2,137.19,14.4]
[1745185832159,116.86065336,137.2,137.19,14.4]
[1745185844563,124.14928309,137.2,137.19,14.4]
[1745185844863,44.64964886,137.18,137.17,14.4]
[1745185845067,55.55984976,137.18,137.17,14.4]
[1745185848664,55.05984976,137.18,137.17,14.4]
[1745185854767,10.9102009,137.18,137.17,14.4]
[1745185859069,0.03,137.21,137.17,14.4]
[1745185859274,10.9102009,137.2,137.17,20.82]
[1745185859650,10.9402009,137.21,137.17,20.82]
[1745185860456,0.03,137.21,137.18,1.6445]
[1745185865478,0.03,137.21,137.19,249.7]
[1745185878380,0.03,137.21,137.19,260.6102009]
[1745185878584,0.03,137.21,137.2,10.9102009]
[1745185879085,0.03,137.21,137.2,97.9524009]
[1745185880095,0.03,137.22,137.2,97.9524009]
[1745185880272,0.03,137.22,137.21,10.9102009]
[1745185885176,0.03,137.22,137.21,91.5202009]
[1745185885579,0.03,137.22,137.21,80.61]
[1745185886385,0.03,137.22,137.21,95.01]
[1745185895007,0.03,137.22,137.21,14.4]
[1745185898791,10.9402009,137.22,137.21,14.4]
[1745185904508,0.03,137.22,137.21,14.4]
[1745185909421,10.9402009,137.22,137.21,14.4]
[1745185910210,0.03,137.22,137.21,14.4]
[1745185913610,10.9402009,137.22,137.21,14.4]
[1745185918115,0.03,137.22,137.21,14.4]
[1745185931745,10.9402009,137.22,137.21,14.4]
[1745185933431,0.03,137.22,137.21,14.4]
[1745185934127,18.67964886,137.22,137.21,14.4]
[1745185934335,29.58984976,137.22,137.21,14.4]
[1745185942233,73.24984976,137.22,137.21,14.4]
[1745185942438,29.58984976,137.22,137.21,14.4]
[1745185948341,18.67964886,137.22,137.21,14.4]
[1745185948636,29.58984976,137.22,137.21,14.4]
[1745185950343,0.03,137.22,137.21,14.4]
[1745185950639,26.03,137.22,137.21,14.4]
[1745185950840,0.03,137.22,137.21,14.4]
[1745185951236,10.9402009,137.22,137.21,14.4]
[1745185954342,0.03,137.22,137.21,14.4]
[1745185958927,10.9402009,137.22,137.21,14.4]
[1745185964347,0.03,137.22,137.21,14.4]
[1745185992159,0.03,137.22,137.21,25.3102009]
[1745185993374,0.03,137.22,137.21,105.9202009]
[1745185995475,0.03,137.22,137.21,95.01]
[1745185998275,0.03,137.22,137.21,344.61]
[1745186007465,0.03,137.22,137.21,264.0]
[1745186008374,0.03,137.22,137.21,264.0]
[1745186024401,0.03,137.22,137.21,274.9102009]
[1745186025096,0.03,137.22,137.21,264.0]
[1745186028510,0.03,137.22,137.21,344.61]
[1745186035817,0.03,137.22,137.21,355.5202009]
[1745186050914,0.03,137.22,137.21,381.5202009]
[1745186057530,0.03,137.22,137.21,344.61]
[1745186057734,0.03,137.22,137.21,355.5202009]
[1745186058134,0.03,137.22,137.21,344.61]
[1745186058434,0.03,137.22,137.21,355.5202009]
[1745186060031,0.03,137.22,137.21,344.61]
[1745186074054,0.03,137.22,137.21,355.5202009]
[1745186076050,0.03,137.22,137.21,344.61]
[1745186076931,0.03,137.22,137.21,355.5202009]
[1745186079255,0.03,137.22,137.21,344.61]
[1745186103570,0.03,137.22,137.21,344.59]
[1745186106873,0.03,137.22,137.21,263.98]
[1745186114284,0.03,137.22,137.21,355.5002009]
[1745186118185,0.03,137.23,137.22,10.9102009]
[1745186120871,0.03,137.23,137.22,14.61630839]
[1745186122684,0.03,137.23,137.22,95.22630839]
[1745186125690,0.03,137.23,137.22,80.61]
[1745186126291,0.03,137.23,137.22,91.5202009]
[1745186129398,0.03,137.23,137.22,80.61]
[1745186129571,0.03,137.23,137.22,91.5202009]
[1745186130680,0.03,137.23,137.22,80.61]
[1745186133374,0.03,137.23,137.22,91.5202009]
[1745186141780,0.03,137.23,137.22,80.61]
[1745186148607,0.03,137.23,137.21,263.98]
[1745186162111,0.03,137.23,137.21,274.8902009]
[1745186164323,0.03,137.23,137.21,263.98]
[1745186164623,0.03,137.23,137.21,355.5002009]
[1745186164803,0.03,137.23,137.22,10.9102009]
[1745186169569,0.03,137.23,137.22,91.5202009]
[1745186172059,0.03,137.23,137.22,80.61]
[1745186172260,0.03,137.23,137.22,91.5202009]
[1745186184376,0.03,137.23,137.22,80.61]
[1745186187074,0.03,137.23,137.22,94.97]
[1745186191760,0.03,137.23,137.22,344.53]
[1745186198463,0.03,137.23,137.22,355.4402009]
[1745186201772,0.03,137.23,137.22,344.53]
[1745186233126,0.03,137.23,137.22,263.92]
[1745186242928,10.9402009,137.23,137.22,263.92]
[1745186248237,0.03,137.23,137.22,263.92]
[1745186248734,10.9402009,137.23,137.22,263.92]
[1745186248937,0.03,137.23,137.22,263.92]
[1745186249235,10.9402009,137.23,137.22,263.92]
[1745186249435,10.9402009,137.23,137.22,14.36]
[1745186255139,0.03,137.23,137.22,14.36]
[1745186255636,10.9402009,137.23,137.22,14.36]
[1745186256527,0.03,137.23,137.22,14.36]
[1745186256840,10.9402009,137.23,137.22,14.36]
[1745186264748,29.58984976,137.23,137.22,14.36]
[1745186267054,73.26984976,137.23,137.22,14.36]
[1745186276632,29.58984976,137.23,137.22,14.36]
[1745186283174,74.78674976,137.23,137.22,14.36]
[1745186283345,74.78674976,137.23,137.2,14.34]
[1745186283346,63.32964886,137.22,137.2,14.34]
[1745186283552,26.0,137.18,137.16,249.703]
[1745186283869,44.64964886,137.18,137.17,14.34]
[1745186284970,55.55984976,137.18,137.17,14.34]
[1745186296982,99.23984976,137.18,137.17,14.34]
[1745186313991,18.64964886,137.21,137.17,14.34]
[1745186314190,36.9102009,137.19,137.17,14.34]
[1745186314398,26.0,137.19,137.17,14.34]
[1745186314719,36.9102009,137.19,137.17,14.34]
[1745186315385,26.0,137.19,137.17,14.34]
[1745186315771,10.9102009,137.21,137.17,14.34]
[1745186316177,36.9102009,137.21,137.17,14.34]
[1745186319503,10.9102009,137.2,137.17,14.34]
[1745186329993,36.9102009,137.21,137.17,14.34]
[1745186332183,10.9102009,137.2,137.17,14.34]
[1745186333807,36.9102009,137.21,137.17,14.34]
[1745186335984,26.0,137.21,137.17,14.34]
[1745186338189,36.9102009,137.21,137.17,14.34]
[1745186341415,26.0,137.21,137.17,14.34]
[1745186341815,26.0,137.21,137.18,14.34]
[1745186346509,26.0,137.21,137.19,14.34]
[1745186347105,18.64964886,137.2,137.19,14.34]
[1745186347415,18.64964886,137.2,137.17,14.34]
[1745186347416,26.0,137.18,137.17,14.34]
[1745186347626,55.55984976,137.18,137.17,14.34]
[1745186347810,99.23984976,137.18,137.17,14.34]
[1745186348020,62.32964886,137.17,137.16,249.843]
[1745186348319,63.32964886,137.15,137.14,0.063]
[1745186348615,74.23984976,137.15,137.13,0.063]
[1745186348911,18.20201947,137.14,137.13,0.063]
[1745186349219,80.53166833,137.14,137.13,0.063]
[1745186349405,99.23984976,137.14,137.13,0.063]
[1745186356117,55.55984976,137.14,137.13,0.063]
[1745186361326,55.55984976,137.14,137.13,14.403]
[1745186366042,44.64964886,137.14,137.13,14.403]
[1745186366333,55.55984976,137.14,137.13,14.403]
[1745186366530,44.64964886,137.14,137.13,14.403]
[1745186366728,26.0,137.14,137.13,14.403]
[1745186367037,18.67964886,137.2,137.13,14.403]
[1745186367251,44.64964886,137.17,137.13,14.403]
[1745186367435,0.03,137.2,137.13,14.403]
[1745186367741,36.9102009,137.18,137.13,14.403]
[1745186368125,36.9102009,137.18,137.13,25.3132009]
[1745186368439,26.0,137.18,137.13,25.3132009]
[1745186368741,10.9102009,137.19,137.14,10.9102009]
[1745186368931,10.9402009,137.2,137.15,10.9102009]
[1745186369852,0.03,137.2,137.15,10.9102009]
[1745186370857,0.03,137.2,137.16,10.9102009]
[1745186371236,0.03,137.2,137.17,249.82]
[1745186371436,0.03,137.2,137.18,14.34]
[1745186375146,0.03,137.2,137.19,10.9102009]
[1745186375350,0.03,137.2,137.19,12.5564009]
[1745186376247,0.03,137.2,137.19,93.1664009]
[1745186378539,0.03,137.2,137.19,111.81604976]
[1745186379054,0.03,137.23,137.19,111.81604976]
[1745186379262,0.03,137.23,137.22,10.9102009]
[1745186380656,0.03,137.23,137.21,10.9102009]
[1745186383661,0.03,137.23,137.22,10.9102009]
[1745186385962,0.03,137.23,137.21,91.5202009]
[1745186387768,0.03,137.23,137.22,10.9102009]
[1745186388571,0.03,137.23,137.22,260.5302009]
[1745186394659,0.03,137.23,137.22,274.8502009]
[1745186395369,0.03,137.23,137.22,355.4602009]
[1745186396067,0.03,137.23,137.22,344.55]
[1745186396273,0.03,137.23,137.22,355.4602009]
[1745186400273,0.03,137.23,137.22,344.55]
[1745186400475,0.03,137.23,137.22,263.94]
[1745186401361,0.03,137.23,137.22,374.10984976]
[1745186401556,0.03,137.23,137.22,344.55]
[1745186402059,0.03,137.23,137.22,263.94]
[1745186404280,0.03,137.23,137.22,249.62]
[1745186404583,0.03,137.23,137.22,263.94]
[1745186409685,10.9402009,137.23,137.22,263.94]
[1745186410182,29.58984976,137.23,137.22,263.94]
[1745186410362,55.58984976,137.23,137.22,263.94]
[1745186410561,57.18074976,137.23,137.22,263.94]
[1745186410762,31.18074976,137.23,137.22,249.62]
[1745186410964,25.93721626,137.22,137.14,0.063]
[1745186411165,10.9102009,137.17,137.15,14.32]
[1745186411369,10.9102009,137.18,137.15,14.32]
[1745186411664,26.0,137.19,137.15,14.32]
[1745186412200,10.9102009,137.17,137.15,14.32]
[1745186412363,10.9102009,137.16,137.15,14.32]
[1745186412775,10.9102009,137.17,137.15,14.32]
[1745186413382,31.15074976,137.18,137.15,14.32]
[1745186413586,12.5011009,137.18,137.15,14.32]
[1745186413795,1.5909,137.18,137.15,14.32]
[1745186413976,26.0,137.17,137.15,14.32]
[1745186414582,10.9102009,137.19,137.15,14.32]
[1745186414767,26.0,137.2,137.15,25.2302009]
[1745186414969,1.5909,137.21,137.16,10.9102009]
[1745186415285,10.9102009,137.19,137.15,14.32]
[1745186415685,10.9102009,137.17,137.15,14.32]
[1745186417089,10.9102009,137.18,137.15,14.32]
[1745186417387,10.9102009,137.17,137.15,14.32]
[1745186417970,10.9102009,137.16,137.15,14.32]
[1745186418892,29.55984976,137.16,137.15,14.32]
[1745186419075,55.55984976,137.16,137.15,14.32]
[1745186419278,18.64964886,137.15,137.14,0.063]
[1745186419471,29.55984976,137.15,137.14,14.383]
[1745186420889,31.20064976,137.15,137.14,14.383]
[1745186421298,74.88064976,137.15,137.14,14.383]
[1745186421479,31.20064976,137.15,137.14,14.383]
[1745186429188,1.6408,137.18,137.14,14.383]
[1745186429383,10.9102009,137.16,137.14,14.383]
[1745186429583,26.0,137.16,137.14,14.383]
[1745186429903,10.9102009,137.15,137.14,14.383]
[1745186430679,36.9102009,137.16,137.14,14.383]
[1745186432302,10.9102009,137.15,137.14,14.383]
[1745186433210,26.0,137.16,137.14,14.383]
[1745186434118,10.9102009,137.15,137.14,14.383]
[1745186434503,26.0,137.16,137.14,14.383]
[1745186435502,10.9102009,137.15,137.14,14.383]
[1745186436414,36.9102009,137.16,137.14,14.383]
[1745186439118,26.0,137.16,137.14,14.383]
[1745186440016,36.9102009,137.16,137.14,14.383]
[1745186442631,26.0,137.16,137.14,14.383]
[1745186442825,36.9102009,137.16,137.14,14.383]
[1745186443120,10.9102009,137.15,137.14,14.383]
[1745186443326,26.0,137.16,137.14,14.383]
[1745186443527,36.9102009,137.16,137.14,14.383]
[1745186446242,18.64964886,137.15,137.14,0.063]
[1745186446438,29.55984976,137.15,137.14,14.603]
[1745186446744,31.10964976,137.15,137.14,14.603]
[1745186447948,38.40093667,137.15,137.14,14.603]
[1745186448135,44.82453667,137.15,137.14,14.603]
[1745186448329,37.53324976,137.15,137.14,14.603]
[1745186449738,31.10964976,137.15,137.14,14.603]
[1745186451649,38.40093667,137.15,137.14,14.603]
[1745186453226,38.40093667,137.15,137.14,0.063]
[1745186453430,82.08093667,137.15,137.13,264.223]
[1745186453632,29.55984976,137.14,137.13,264.223]
[1745186456033,36.85166833,137.14,137.13,264.223]
[1745186457350,29.55984976,137.14,137.13,264.223]
[1745186458525,36.85166833,137.14,137.13,264.223]
[1745186460544,88.32964886,137.12,137.11,0.063]
[1745186460749,18.64964886,137.09,137.06,0.063]
[1745186460944,29.55984976,137.09,137.06,0.063]
[1745186461329,73.23984976,137.09,137.06,0.063]
[1745186461531,80.53432784,137.09,137.06,0.063]
[1745186463636,73.23984976,137.09,137.06,0.063]
[1745186463852,82.08962784,137.09,137.06,0.063]
[1745186464535,18.64964886,137.07,137.06,0.063]
[1745186464862,55.55984976,137.07,137.06,0.063]
[1745186468557,36.85539218,137.07,137.06,0.063]
[1745186469158,29.55984976,137.07,137.06,0.063]
[1745186469331,36.85539218,137.07,137.06,0.063]
[1745186469960,29.55984976,137.07,137.06,0.063]
[1745186471458,73.23984976,137.07,137.06,0.063]
[1745186471758,80.53539218,137.07,137.06,0.063]
[1745186471950,73.23984976,137.07,137.06,0.063]
[1745186473161,80.53539218,137.07,137.06,0.063]
[1745186475959,73.23984976,137.07,137.06,0.063]
[1745186477940,80.53539218,137.07,137.06,0.063]
[1745186478157,80.53539218,137.07,137.05,14.583]
[1745186478347,11.9102009,137.06,137.04,14.54]
[1745186478663,29.55984976,137.05,137.04,14.54]